bitfinex/quotes_ETHUSD_20241119
["timestamp","ask_amount","ask_price","bid_price","bid_amount"]
[1731998740538,3.19418,3130.7,3130.3,35.319]
[1731998741337,3.19403,3130.9,3130.3,35.319]
[1731998741714,3.19411,3130.8,3130.3,35.319]
[1731998743524,4.0131,3131.0,3130.3,35.319]
[1731998744451,3.19401,3130.9,3130.3,35.319]
[1731998746730,0.8192,3131.0,3130.7,0.319]
[1731998750164,0.8192,3131.0,3130.5,0.319]
[1731998752971,3.19403,3130.9,3130.5,0.319]
[1731998753653,3.19403,3130.9,3130.6,0.319]
[1731998754251,3.19409,3130.8,3130.6,0.319]
[1731998754462,0.319409,3130.7,3130.6,0.319]
[1731998754650,3.19409,3130.8,3130.6,0.319]
[1731998756981,3.19409,3130.8,3130.2,38.95786]
[1731998756982,3.19409,3130.8,3130.3,0.319]
[1731998757701,3.19446,3130.5,3130.3,0.319]
[1731998758044,3.19446,3130.5,3130.1,0.319]
[1731998758767,3.19445,3130.5,3130.1,0.319]
[1731998759156,3.19445,3130.5,3129.9,0.319]
[1731998759556,3.19445,3130.5,3129.9,3.51397]
[1731998760561,3.1942,3130.7,3130.2,1.1307]
[1731998760763,3.1942,3130.7,3130.2,4.32538]
[1731998760969,3.19417,3130.7,3130.2,4.32538]
[1731998762871,3.19417,3130.7,3130.2,1.1307]
[1731998763721,3.19428,3130.6,3130.2,1.1307]
[1731998763886,3.19417,3130.7,3130.2,1.1307]
[1731998764711,3.96998,3130.9,3130.2,1.1307]
[1731998764927,3.19407,3130.8,3130.2,4.32536]
[1731998766684,3.96998,3130.9,3130.2,4.32536]
[1731998766887,3.19418,3130.7,3130.2,1.1307]
[1731998767317,3.1944,3130.5,3130.2,1.1307]
[1731998767683,3.1944,3130.5,3130.3,0.319]
[1731998767684,3.19452,3130.4,3130.3,0.319]
[1731998767889,4.26656,3130.4,3130.3,0.319]
[1731998769023,4.26656,3130.4,3129.9,0.319]
[1731998769024,3.19462,3130.3,3129.9,0.319]
[1731998770116,3.1944,3130.5,3129.9,3.51398]
[1731998771934,3.96908,3130.7,3130.1,3.51378]
[1731998775526,3.96908,3130.7,3130.1,0.319]
[1731998777031,3.19439,3130.5,3130.1,0.319]
[1731998778229,3.19455,3130.4,3130.1,0.319]
[1731998778935,3.21682879,3130.4,3130.1,0.319]
[1731998780443,0.02227879,3130.4,3130.1,0.319]
[1731998783354,3.21677879,3130.4,3130.1,0.319]
[1731998785440,0.02227879,3130.4,3130.1,0.319]
[1731998786717,3.21675879,3130.4,3130.1,0.319]
[1731998787132,0.02227879,3130.4,3130.1,0.319]
[1731998788153,3.21674879,3130.4,3130.1,0.319]
[1731998792378,3.19458,3130.3,3130.1,0.319]
[1731998795319,3.19468,3130.2,3130.1,0.319]
[1731998798067,3.19468,3130.2,3129.6,0.7892]
[1731998798269,3.19486,3130.1,3129.7,0.3192]
[1731998799226,3.19489,3130.0,3129.7,0.3192]
[1731998801438,3.19489,3130.0,3129.8,35.3192]
[1731998802877,3.19489,3130.0,3129.7,0.3192]
[1731998803583,3.19489,3130.0,3129.7,35.3192]
[1731998811408,6.38946,3130.2,3129.7,35.3192]
[1731998811706,3.19486,3130.1,3129.7,35.3192]
[1731998816813,3.19468,3130.2,3129.7,35.3192]
[1731998817017,3.19479,3130.1,3129.7,35.3192]
[1731998818356,3.19478,3130.1,3129.7,35.3192]
[1731998818557,6.38963,3130.1,3129.7,35.3192]
[1731998818949,3.19478,3130.1,3129.7,35.3192]
[1731998819643,3.19489,3130.0,3129.7,35.3192]
[1731998822571,3.19499,3129.9,3129.7,35.3192]
[1731998822931,3.19509,3129.8,3129.7,35.3192]
[1731998823770,3.19509,3129.8,3129.7,0.3192]
[1731998824131,3.19531,3129.6,3129.4,0.3192]
[1731998824457,3.19538,3129.6,3129.4,0.3192]
[1731998824661,3.19539,3129.5,3129.4,0.3192]
[1731998825330,3.96239,3129.5,3129.4,0.3192]
[1731998825944,3.1958,3129.1,3129.0,0.3192]
[1731998826144,3.9559,3129.1,3129.0,0.3192]
[1731998826353,3.19601,3128.9,3128.8,0.3192]
[1731998827230,3.19611,3128.8,3128.7,0.3192]
[1731998828330,3.19611,3128.8,3128.6,0.3192]
[1731998829351,3.19611,3128.8,3128.4,0.3192]
[1731998830280,0.7818,3128.7,3128.4,35.3192]
[1731998830893,3.19611,3128.8,3128.4,35.3192]
[1731998831090,3.19611,3128.8,3128.4,38.46019947]
[1731998831252,3.19623,3128.7,3128.4,38.46019947]
[1731998831782,4.51881602,3129.0,3128.4,38.46019947]
[1731998831990,0.7818,3129.1,3128.4,38.46019947]
[1731998831991,3.19601,3128.9,3128.4,38.46019947]
[1731998832345,3.19601,3128.9,3128.4,3.46019947]
[1731998832548,3.19601,3128.9,3128.4,0.3192]
[1731998832852,0.7818,3129.1,3128.5,0.8178]
[1731998832853,3.19589,3129.1,3128.5,0.8178]
[1731998833250,3.19567,3129.3,3128.4,3.5157]
[1731998833551,3.19567,3129.3,3128.8,1.137]
[1731998833552,3.19561,3129.3,3128.8,1.137]
[1731998833997,3.19552,3129.4,3128.8,1.137]
[1731998834195,3.19561,3129.3,3128.8,1.137]
[1731998834694,3.1957,3129.2,3128.8,1.137]
[1731998835213,0.7706,3130.1,3129.2,0.8045]
[1731998835410,2.09347602,3130.1,3129.2,0.8045]
[1731998835696,3.19546,3129.5,3129.2,0.8045]
[1731998836000,5.32080602,3129.7,3129.2,0.8045]
[1731998836156,3.1955,3129.4,3129.2,0.8045]
[1731998836594,5.32080602,3129.7,3129.2,0.8045]
[1731998836595,3.99793,3129.7,3129.2,0.8045]
[1731998836895,3.19523,3129.7,3129.2,1.1237]
[1731998837101,3.195,3129.9,3129.3,0.431941]
[1731998837258,3.195,3129.9,3129.2,4.3194]
[1731998837452,3.19512,3129.8,3129.2,4.3194]
[1731998837865,0.16642282,3130.3,3129.4,0.8245]
[1731998838099,0.16642282,3130.3,3129.8,4.01958]
[1731998838296,6.19449,3130.4,3129.8,4.01958]
[1731998838608,6.19449,3130.4,3129.8,4.33878]
[1731998839264,3.19458,3130.3,3129.8,1.1437]
[1731998839469,3.19476,3130.2,3129.8,1.1437]
[1731998839700,3.19476,3130.2,3129.8,0.8245]
[1731998839701,0.79,3130.2,3129.8,0.8245]
[1731998839861,3.19496,3130.0,3129.8,0.8245]
[1731998840928,3.1947,3130.2,3129.8,0.8245]
[1731998841112,3.19483,3130.1,3129.8,0.8245]
[1731998842324,3.19468,3130.2,3129.8,0.8245]
[1731998843196,1.32287602,3130.3,3129.9,0.3192]
[1731998843735,4.51746602,3130.3,3129.9,0.3192]
[1731998845233,3.1947,3130.2,3129.9,0.3192]
[1731998845726,4.51746602,3130.3,3129.9,0.3192]
[1731998845927,3.19485,3130.1,3129.9,0.3192]
[1731998846316,4.51746602,3130.3,3129.9,0.3192]
[1731998846317,3.19477,3130.2,3129.9,0.3192]
[1731998847098,1.32287602,3130.3,3129.9,0.3192]
[1731998847307,3.19468,3130.2,3129.9,0.3192]
[1731998847507,3.19488,3130.0,3129.9,0.3192]
[1731998848853,3.19488,3130.0,3129.6,0.3192]
[1731998849931,2.11727602,3130.1,3129.6,0.3192]
[1731998850145,1.32287602,3130.1,3129.6,0.3192]
[1731998850451,5.32201602,3130.3,3129.6,0.752842]
[1731998850608,5.32201602,3130.3,3129.7,3.51437]
[1731998850807,5.32201602,3130.3,3129.7,38.51437]
[1731998851209,3.19477,3130.2,3129.7,35.3192]
[1731998852751,3.1944,3130.5,3129.9,3.19497]
[1731998852955,4.51727602,3130.5,3130.0,0.8207]
[1731998854447,3.19449,3130.4,3130.0,0.8207]
[1731998856064,3.19461,3130.3,3130.0,0.8207]
[1731998856280,3.19449,3130.4,3130.0,0.8207]
[1731998857693,1.32287602,3130.5,3130.0,0.8207]
[1731998858192,1.32287602,3130.5,3130.0,1.88778895]
[1731998858497,4.6834575,3130.7,3130.1,0.788]
[1731998858898,3.19434,3130.6,3130.1,0.788]
[1731998859468,1.4892575,3130.7,3130.1,0.788]
[1731998859469,1.4892575,3130.7,3130.1,3.98278]
[1731998859808,3.19431,3130.6,3130.2,0.5049899]
[1731998860015,3.19439,3130.5,3130.1,0.788]
[1731998860876,4.51707602,3130.7,3130.1,0.788]
[1731998861865,3.19429,3130.6,3130.1,0.788]
[1731998862633,3.19439,3130.5,3130.1,0.788]
[1731998862797,3.19429,3130.6,3130.1,0.788]
[1731998862968,3.19452,3130.4,3130.1,0.788]
[1731998863708,3.19466,3130.3,3130.1,0.788]
[1731998864467,3.19466,3130.3,3129.9,0.8218]
[1731998865078,3.19452,3130.4,3129.9,0.8218]
[1731998865275,3.19469,3130.2,3129.9,0.8218]
[1731998866703,3.19488,3130.0,3129.9,0.8218]
[1731998867433,6.38944,3130.2,3129.9,0.8218]
[1731998867719,3.19469,3130.2,3129.9,0.8218]
[1731998868676,3.21696879,3130.2,3129.9,0.8218]
[1731998870926,3.1948,3130.1,3129.9,0.8218]
[1731998872495,3.1948,3130.1,3129.7,36.1183]
[1731998872707,0.02227879,3130.2,3129.7,36.70069018]
[1731998872896,3.21696879,3130.2,3129.7,36.70069018]
[1731998878639,0.02227879,3130.2,3129.7,36.70069018]
[1731998878853,0.02227879,3130.2,3129.7,39.89583018]
[1731998879006,0.02227879,3130.2,3129.7,36.70069018]
[1731998879203,0.02227879,3130.2,3129.8,3.14099947]
[1731998879737,0.02227879,3130.2,3129.7,4.89587018]
[1731998879941,0.02227879,3130.2,3129.9,35.0]
[1731998881407,3.21696879,3130.2,3129.9,35.0]
[1731998881645,3.19479,3130.1,3129.9,35.0]
[1731998882805,3.19479,3130.1,3129.7,1.70069018]
[1731998883447,3.19479,3130.1,3129.8,35.0]
[1731998885260,0.02227879,3130.2,3129.8,38.14099947]
[1731998885590,0.02227879,3130.2,3129.9,0.3192]
[1731998885890,3.21696879,3130.2,3129.9,0.3192]
[1731998886245,3.21696879,3130.2,3130.0,35.0]
[1731998887796,3.19478,3130.1,3130.0,35.0]
[1731998891797,3.19478,3130.1,3129.8,0.3192]
[1731998891798,3.19499,3129.9,3129.8,0.3192]
[1731998892903,3.19509,3129.8,3129.7,0.3192]
[1731998893217,3.19537,3129.6,3129.3,0.3192]
[1731998893748,3.19537,3129.6,3129.4,35.0]
[1731998894717,0.777,3129.7,3129.4,35.0]
[1731998894919,3.19509,3129.8,3129.4,36.64979283]
[1731998895406,3.19509,3129.8,3129.5,0.3192]
[1731998895636,4.0154,3129.9,3129.5,0.3192]
[1731998895803,3.195,3129.9,3129.6,0.7575]
[1731998896001,3.19486,3130.1,3129.6,0.7575]
[1731998896319,3.19486,3130.1,3129.6,3.89849947]
[1731998896740,0.02227879,3130.2,3129.6,7.09378947]
[1731998896950,0.02227879,3130.2,3129.9,0.3192]
[1731998897151,3.19479,3130.1,3129.9,0.3192]
[1731998899874,3.19511,3129.8,3129.6,1.0815]
[1731998900022,3.19498,3130.0,3129.6,1.0815]
[1731998900371,3.21699879,3130.2,3129.6,1.0815]
[1731998900664,3.21699879,3130.2,3129.6,4.22249947]
[1731998900820,3.21699879,3130.2,3129.6,7.41777947]
[1731998901121,3.21699879,3130.2,3129.6,6.65547947]
[1731998901321,3.21699879,3130.2,3129.7,1.1118]
[1731998903981,3.21701879,3130.2,3129.7,1.1118]
[1731998904469,3.19495,3130.0,3129.7,1.1118]
[1731998904822,3.21701879,3130.2,3129.7,1.1118]
[1731998905363,3.21701879,3130.2,3129.8,35.0]
[1731998905364,3.19479,3130.1,3129.8,35.0]
[1731998905563,3.21701879,3130.2,3129.9,0.3192]
[1731998905727,3.19488,3130.0,3129.9,0.3192]
[1731998906068,3.19488,3130.0,3129.8,35.0]
[1731998906642,3.19499,3129.9,3129.8,35.0]
[1731998907169,3.19516,3129.8,3129.5,0.3192]
[1731998907359,3.19516,3129.8,3129.4,0.7641]
[1731998907360,3.19525,3129.7,3129.4,0.7641]
[1731998907539,3.19525,3129.7,3129.5,35.0]
[1731998908029,3.19525,3129.7,3129.4,0.7641]
[1731998909776,3.19525,3129.7,3129.3,35.3192]
[1731998909777,3.19532,3129.6,3129.3,35.3192]
[1731998911476,3.19525,3129.7,3129.3,35.3192]
[1731998911477,3.1955,3129.4,3129.3,35.3192]
[1731998911718,3.1955,3129.4,3129.3,35.0]
[1731998912406,3.1955,3129.4,3129.1,1.1133]
[1731998912978,3.1956,3129.3,3129.1,1.1133]
[1731998913179,3.1957,3129.2,3129.1,0.3192]
[1731998913422,3.1957,3129.2,3128.9,35.8105]
[1731998913423,3.1957,3129.2,3129.0,0.3192]
[1731998913892,3.1956,3129.3,3129.0,0.3192]
[1731998914098,3.1958,3129.1,3129.0,0.3192]
[1731998914293,3.1958,3129.1,3128.9,35.8105]
[1731998914619,3.1959,3129.0,3128.9,35.0]
[1731998915417,3.19621,3128.7,3128.6,0.7955]
[1731998915725,4.01924,3129.0,3128.6,0.3192]
[1731998916027,3.19618,3128.8,3128.6,0.3192]
[1731998916317,0.8233,3129.0,3128.6,0.3192]
[1731998916318,3.19621,3128.7,3128.6,0.3192]
[1731998916491,3.19621,3128.7,3128.4,0.7549]
[1731998916492,3.19621,3128.7,3128.5,0.3192]
[1731998916686,3.19631,3128.6,3128.5,0.3192]
[1731998917921,3.19631,3128.6,3128.4,0.3192]
[1731998919224,3.19611,3128.8,3128.4,0.3192]
[1731998919379,3.19593,3129.0,3128.5,0.3192]
[1731998919582,3.19605,3128.9,3128.6,1.1325]
[1731998921379,0.7761,3129.3,3128.6,1.1325]
[1731998921580,3.1956,3129.3,3128.8,0.3192]
[1731998922299,0.8164,3129.2,3128.8,0.3192]
[1731998923014,0.8164,3129.2,3128.7,0.7557]
[1731998923015,0.8164,3129.2,3128.7,0.3192]
[1731998923216,3.19587,3129.1,3128.7,0.3192]
[1731998924593,3.19587,3129.1,3128.6,0.432887]
[1731998924594,3.19587,3129.1,3128.9,0.3192]
[1731998924932,3.1959,3129.0,3128.9,0.3192]
[1731998925945,3.19608,3128.9,3128.6,0.3192]
[1731998926230,3.19611,3128.8,3128.6,0.3192]
[1731998926392,3.19611,3128.8,3128.7,35.3192]
[1731998926788,3.1959,3129.0,3128.7,35.3192]
[1731998928016,3.19572,3129.2,3128.9,0.3192]
[1731998928928,0.02227879,3129.0,3128.9,0.3192]
[1731998930647,0.02227879,3129.0,3128.9,1.1048]
[1731998932802,0.02227879,3129.0,3128.8,0.3192]
[1731998933606,3.19601,3128.9,3128.8,0.3192]
[1731998933932,3.19601,3128.9,3128.6,0.3192]
[1731998934346,3.19601,3128.9,3128.5,0.7926]
[1731998934347,3.19601,3128.9,3128.8,0.3192]
[1731998935856,0.02227879,3129.0,3128.8,0.3192]
[1731998936540,0.02227879,3129.0,3128.9,1.0916]
[1731998938411,0.02227879,3129.0,3128.9,5.61048602]
[1731998939249,0.02227879,3129.0,3128.9,4.35151637]
[1731998940105,0.02227879,3129.0,3128.9,1.0916]
[1731998941465,0.02227879,3129.0,3128.9,36.0916]
[1731998941827,0.02227879,3129.0,3128.9,35.3192]
[1731998942153,3.21817879,3129.0,3128.9,35.3192]
[1731998942532,3.21817879,3129.0,3128.9,0.3192]
[1731998943459,3.21817879,3129.0,3128.8,0.3192]
[1731998943640,3.19601,3128.9,3128.8,0.3192]
[1731998943839,3.95621,3128.9,3128.8,0.3192]
[1731998944225,3.19611,3128.8,3128.7,35.3192]
[1731998944629,3.19611,3128.8,3128.7,0.3192]
[1731998945269,3.19611,3128.8,3128.5,0.3192]
[1731998945560,3.19623,3128.7,3128.5,0.3192]
[1731998946262,3.19623,3128.7,3128.6,35.3192]
[1731998946965,3.19623,3128.7,3128.6,0.3192]
[1731998947132,3.19633,3128.6,3128.4,0.3192]
[1731998947519,3.19642,3128.5,3128.4,0.3192]
[1731998948971,3.19642,3128.5,3128.1,1.1112]
[1731998950267,3.19652,3128.4,3128.1,1.1112]
[1731998951538,3.19672,3128.2,3127.8,0.818]
[1731998952059,3.19696,3128.0,3127.3,3.97327]
[1731998952433,3.19696,3128.0,3127.4,0.3192]
[1731998952744,3.19696,3128.0,3127.4,0.748447]
[1731998953957,3.1971,3127.9,3127.4,0.748447]
[1731998954337,3.1971,3127.9,3127.4,0.3192]
[1731998954575,3.19716,3127.8,3127.4,0.3192]
[1731998954885,3.19743,3127.6,3127.3,0.3192]
[1731998955168,3.19754,3127.4,3127.3,0.3192]
[1731998955946,3.19766,3127.3,3127.0,0.3192]
[1731998958171,0.7879,3127.8,3127.0,0.3192]
[1731998958172,3.19747,3127.5,3127.0,0.3192]
[1731998958352,3.19765,3127.3,3127.0,0.3192]
[1731998958886,0.02227879,3127.4,3127.0,0.3192]
[1731998959254,3.21982879,3127.4,3127.0,0.31314744]
[1731998959458,3.19771,3127.3,3127.0,0.31314744]
[1731998959788,3.19766,3127.3,3127.0,0.31314744]
[1731998959949,3.19766,3127.3,3126.8,0.30709488]
[1731998959950,0.8187,3127.3,3126.8,0.30709488]
[1731998960467,4.01635,3127.3,3126.8,0.30709488]
[1731998960785,0.8187,3127.3,3126.8,0.30709488]
[1731998960986,3.21982879,3127.4,3126.8,3.50522488]
[1731998962280,3.21982879,3127.4,3126.8,0.30709488]
[1731998962598,3.19768,3127.3,3126.8,0.30709488]
[1731998962898,3.19786,3127.1,3126.8,0.30709488]
[1731998963993,3.19786,3127.1,3126.7,0.30709488]
[1731998963994,3.19805,3126.9,3126.7,0.30709488]
[1731998964204,3.19805,3126.9,3126.3,3.95196]
[1731998964415,3.19805,3126.9,3126.4,0.3192]
[1731998965181,0.7639,3127.0,3126.4,3.51776]
[1731998965411,3.96185,3127.0,3126.4,3.51776]
[1731998966399,3.96185,3127.0,3126.4,0.3192]
[1731998966608,3.19805,3126.9,3126.4,0.3192]
[1731998967481,0.7639,3127.0,3126.4,0.3192]
[1731998967690,3.19826,3126.7,3126.4,0.3192]
[1731998969288,3.19826,3126.7,3126.1,3.20069284]
[1731998969289,0.8129,3126.5,3126.1,0.00184284]
[1731998969494,4.01143,3126.5,3126.1,0.32104284]
[1731998969692,0.8129,3126.5,3126.1,0.32104284]
[1731998970722,4.01139,3126.5,3126.1,0.32104284]
[1731998971008,0.8129,3126.5,3126.1,0.32104284]
[1731998973419,4.01143,3126.5,3126.1,0.32104284]
[1731998974922,3.19857,3126.4,3126.1,0.32104284]
[1731998975502,3.1987,3126.3,3126.1,0.00184284]
[1731998976424,3.19867,3126.3,3126.1,0.00184284]
[1731998976718,3.19877,3126.2,3126.1,0.00184284]
[1731998977104,4.02697,3126.2,3126.1,0.00184284]
[1731998978042,8.06478902,3126.2,3126.1,0.00184284]
[1731998978345,7.57697,3126.2,3126.1,0.00184284]
[1731998983668,7.02697,3126.2,3126.1,0.00184284]
[1731998983874,6.19877,3126.2,3126.1,0.00184284]
[1731998984377,0.7838,3126.5,3126.1,0.82364284]
[1731998984378,3.19849,3126.5,3126.1,0.82364284]
[1731998985234,3.19816,3126.8,3126.1,4.02241284]
[1731998985436,3.19816,3126.8,3126.2,3.19876]
[1731998986576,0.16641145,3126.9,3126.1,1.54577312]
[1731998986882,3.19826,3126.7,3126.1,1.54577312]
[1731998987874,3.19826,3126.7,3126.1,4.74463312]
[1731998988176,3.19826,3126.7,3126.1,4.02250284]
[1731998988749,3.19826,3126.7,3126.1,4.02162284]
[1731998989097,0.16641145,3126.9,3126.3,0.7549]
[1731998989237,3.19786,3127.1,3126.1,0.00096284]
[1731998989238,3.19786,3127.1,3126.6,0.7549]
[1731998990666,3.38634695,3127.4,3126.8,3.19814]
[1731998992267,3.21983879,3127.4,3126.8,3.19814]
[1731998992651,3.21983879,3127.4,3126.9,0.7705]
[1731998993252,0.02227879,3127.4,3127.0,3.19795]
[1731998993454,0.02227879,3127.4,3127.1,3.96826]
[1731998993892,0.02227879,3127.4,3127.1,0.7705]
[1731998994063,0.02227879,3127.4,3127.2,3.19772]
[1731998994275,0.02227879,3127.4,3127.1,0.7705]
[1731998994480,0.02227879,3127.4,3127.3,3.19764]
[1731998994971,0.02227879,3127.4,3127.2,0.396845]
[1731998995872,0.02227879,3127.4,3127.2,3.594575]
[1731998996467,0.02227879,3127.4,3127.2,0.396845]
[1731998996808,0.02227879,3127.4,3127.1,0.7705]
[1731998997216,0.02227879,3127.4,3127.1,3.96834]
[1731998998098,0.02227879,3127.4,3127.1,0.7705]
[1731998999843,0.02227879,3127.4,3127.1,3.96834]
[1731999000143,0.02227879,3127.4,3127.3,3.94784]
[1731999000298,0.02227879,3127.4,3127.3,4.6624]
[1731999000659,0.02227879,3127.4,3127.3,0.7502]
[1731999000951,0.02227879,3127.4,3126.9,3.19803]
[1731999000952,0.02227879,3127.4,3127.0,0.7534]
[1731999002215,0.02227879,3127.4,3127.1,35.0]
[1731999004274,0.02227879,3127.4,3127.0,0.7534]
[1731999005063,0.02227879,3127.4,3127.1,35.0]
[1731999005719,0.02227879,3127.4,3127.3,3.98414]
[1731999006062,0.02227879,3127.4,3127.3,4.30334]
[1731999007009,0.02227879,3127.4,3127.3,7.30334]
[1731999007304,0.02227879,3127.4,3127.3,7.31334]
[1731999007609,0.16648822,3128.8,3128.0,0.7917]
[1731999007809,4.01321,3128.9,3128.1,3.19674]
[1731999007810,0.8172,3128.9,3128.1,3.19674]
[1731999008104,3.19598,3129.0,3128.3,3.19654]
[1731999008266,3.19601,3128.9,3128.3,38.19654]
[1731999009105,3.19583,3129.1,3128.4,3.19648]
[1731999009276,3.19591,3129.0,3128.4,3.19648]
[1731999009923,3.19602,3128.9,3128.3,35.0]
[1731999010233,0.33390295,3128.9,3128.3,38.19662]
[1731999010381,0.33390295,3128.9,3128.3,41.33761947]
[1731999010829,0.33390295,3128.9,3128.5,3.19641]
[1731999011004,0.33390295,3128.9,3128.6,0.7502]
[1731999012683,0.33390295,3128.9,3128.8,4.00061]
[1731999012924,0.8058,3129.9,3129.3,3.19558]
[1731999014029,0.8058,3129.9,3129.4,35.0]
[1731999014833,4.00082,3129.9,3129.4,35.0]
[1731999016423,3.19509,3129.8,3129.4,35.0]
[1731999017086,3.19554,3129.4,3128.8,0.8045]
[1731999017516,3.19539,3129.5,3128.9,35.0]
[1731999018780,3.1955,3129.4,3128.9,35.0]
[1731999019195,0.8186,3129.5,3128.9,35.0]
[1731999019534,4.01399,3129.5,3128.9,35.0]
[1731999019733,3.19562,3129.3,3128.9,35.0]
[1731999020291,3.1957,3129.2,3128.9,35.0]
[1731999020593,3.19578,3129.2,3128.9,35.0]
[1731999021100,3.19584,3129.1,3128.5,0.7709]
[1731999021502,3.19584,3129.1,3128.6,35.0]
[1731999024431,3.19591,3129.0,3128.6,35.0]
[1731999025103,3.19602,3128.9,3128.6,35.0]
[1731999025430,3.19602,3128.9,3128.7,0.3192]
[1731999025620,4.00542,3128.9,3128.7,0.3192]
[1731999025804,3.19611,3128.8,3128.7,0.3192]
[1731999026327,3.19632,3128.6,3128.4,0.3192]
[1731999026913,3.19632,3128.6,3128.5,35.3192]
[1731999027726,4.00542,3128.9,3128.5,35.3192]
[1731999027933,3.19618,3128.8,3128.5,35.3192]
[1731999028633,0.33381971,3128.7,3128.5,35.3192]
[1731999030032,0.33381971,3128.7,3128.6,4.27441]
[1731999030602,0.7716,3130.0,3129.2,0.3192]
[1731999030831,3.19509,3129.8,3129.4,0.3192]
[1731999031839,3.19509,3129.8,3129.5,35.0]
[1731999032952,0.33374895,3129.9,3129.5,35.0]
[1731999033097,3.52879895,3129.9,3129.5,35.0]
[1731999033295,3.19512,3129.8,3129.5,35.0]
[1731999036336,3.1952,3129.7,3129.5,35.0]
[1731999036643,3.19529,3129.6,3129.5,35.0]
[1731999038728,3.1957,3129.2,3128.8,0.3192]
[1731999039242,3.19581,3129.1,3128.9,35.0]
[1731999039546,3.1957,3129.2,3128.9,35.0]
[1731999041000,3.19552,3129.4,3128.9,35.0]
[1731999041200,3.19552,3129.4,3128.9,35.3192]
[1731999041449,3.1953,3129.6,3129.0,3.1959]
[1731999041725,3.19523,3129.7,3129.1,0.7541]
[1731999041908,3.19538,3129.6,3129.1,0.7541]
[1731999042346,0.33374895,3129.9,3129.1,0.7541]
[1731999042347,3.19546,3129.5,3129.1,0.7541]
[1731999042524,3.19546,3129.5,3129.2,35.0]
[1731999043107,0.3528839,3129.7,3129.2,35.0]
[1731999043466,3.19538,3129.6,3129.2,35.0]
[1731999043646,3.19522,3129.7,3129.2,35.0]
[1731999043835,3.19541,3129.5,3129.2,35.0]
[1731999044070,3.19556,3129.4,3129.2,35.0]
[1731999044965,0.7852,3129.4,3129.2,35.0]
[1731999045171,3.1956,3129.3,3129.2,35.0]
[1731999045881,3.19601,3128.9,3128.8,0.3192]
[1731999046242,3.19601,3128.9,3128.8,35.3192]
[1731999046582,3.52980722,3128.9,3128.8,35.0]
[1731999046737,0.33379722,3128.9,3128.4,4.30032]
[1731999046944,0.33379722,3128.9,3128.4,4.73038]
[1731999047143,0.33379722,3128.9,3128.5,35.3192]
[1731999047449,0.33379722,3128.9,3128.6,0.7915]
[1731999047651,0.33379722,3128.9,3128.6,4.25169947]
[1731999047859,0.33379722,3128.9,3128.6,1.1107]
[1731999048179,0.33379722,3128.9,3128.7,35.0]
[1731999048881,0.33379722,3128.9,3128.5,0.3192]
[1731999049178,3.52981722,3128.9,3128.5,0.3192]
[1731999049352,0.33379722,3128.9,3128.5,0.3192]
[1731999049697,0.33379722,3128.9,3128.6,35.0]
[1731999053481,0.33379722,3128.9,3128.6,38.19631]
[1731999053681,0.33379722,3128.9,3128.8,3.19611]
[1731999053986,0.33379722,3128.9,3128.7,7.41468947]
[1731999054157,0.33379722,3128.9,3128.7,4.27369]
[1731999054355,0.33379722,3128.9,3128.8,35.0]
[1731999059504,0.33379722,3128.9,3128.8,38.95101]
[1731999062916,0.33379722,3128.9,3128.8,0.7549]
[1731999063083,0.33379722,3128.9,3128.8,3.95101]
[1731999063288,0.33379722,3128.9,3128.8,38.95101]
[1731999063907,0.33379722,3128.9,3128.8,35.0]
[1731999065428,0.33379722,3128.9,3128.8,35.3192]
[1731999066111,0.33379722,3128.9,3128.8,35.0]
[1731999066308,0.33379722,3128.9,3128.5,0.3192]
[1731999066891,0.33379722,3128.9,3128.6,35.0]
[1731999067313,3.19618,3128.8,3128.6,35.0]
[1731999067838,3.19621,3128.7,3128.6,35.0]
[1731999068328,3.19644,3128.5,3128.2,1.1411]
[1731999068488,3.19644,3128.5,3128.0,1.1317]
[1731999068989,3.19644,3128.5,3128.1,35.0]
[1731999069219,3.19652,3128.4,3127.8,0.8125]
[1731999069388,3.19681,3128.2,3127.7,0.3192]
[1731999069729,0.8073,3128.1,3127.7,0.3192]
[1731999070532,0.8073,3128.1,3127.6,0.8125]
[1731999070729,0.8073,3128.1,3127.6,1.24541]
[1731999070883,3.19672,3128.2,3127.5,7.00037]
[1731999071288,3.19672,3128.2,3127.6,3.19729]
[1731999071520,3.19672,3128.2,3127.6,4.248993]
[1731999072388,0.7673,3128.3,3127.7,3.19723]
[1731999073003,0.7673,3128.3,3127.5,4.00036]
[1731999073196,3.19683,3128.1,3127.5,0.803]
[1731999073397,3.19682,3128.2,3127.5,0.803]
[1731999073398,3.19694,3128.0,3127.5,0.803]
[1731999074187,3.19682,3128.2,3127.6,3.19727]
[1731999075235,3.19682,3128.2,3127.5,0.803]
[1731999075437,3.19683,3128.1,3127.5,4.00043]
[1731999077347,0.7673,3128.3,3127.5,1.854716]
[1731999077642,3.0,3129.1,3127.8,3.19703]
[1731999077643,3.95557,3128.5,3127.8,3.19703]
[1731999077851,3.95557,3128.5,3127.9,3.19702]
[1731999078141,3.95557,3128.5,3127.8,3.19703]
[1731999078445,3.95557,3128.5,3127.9,3.19702]
[1731999080822,3.95557,3128.5,3128.0,0.3192]
[1731999081225,3.1966,3128.4,3127.7,3.19723]
[1731999081423,3.19665,3128.3,3127.7,3.19723]
[1731999081815,3.19665,3128.3,3127.7,3.51643]
[1731999082206,3.19683,3128.1,3127.7,0.3192]
[1731999083325,3.19683,3128.1,3127.6,0.3192]
[1731999084449,3.97823,3128.1,3127.6,0.3192]